fUST/lending_fUST_20250405
["ID","MTS","AMOUNT","RATE_DAILY","PERIOD"]
[357154671,1743803448343,-500.0,0.00020815,2]
[357154672,1743803448353,-526.84,0.00020815,2]
[357154673,1743803448362,-500.0,0.00020815,2]
[357154674,1743803448371,-500.0,0.00020908,2]
[357154675,1743803448381,-500.0,0.00020909,2]
[357154676,1743803448391,-500.0,0.00020909,2]
[357154677,1743803448401,-151.0,0.00020989,2]
[357154678,1743803448412,-151.0,0.00020989,2]
[357154679,1743803448422,-151.0,0.00020989,2]
[357154680,1743803448432,-151.0,0.00020989,2]
[357154681,1743803448442,-158.829759,0.00020989,2]
[357154682,1743803448451,-2651.80505376,0.00020989,2]
[357154683,1743803448498,-7157.69652516,0.00020989,2]
[357154684,1743803448509,-526.84,0.00021089,2]
[357154685,1743803448519,-500.0,0.00021089,2]
[357154686,1743803448528,-500.0,0.00021183,2]
[357154687,1743803448538,-419.12848707,0.00021244,2]
[357154688,1743803448547,-359.30299373,0.00021244,2]
[357154689,1743803448559,-577.52548435,0.00021279,3]
[357154690,1743803448572,-680.64145284,0.00021334,2]
[357154691,1743803448582,-526.84,0.00021363,2]
[357154692,1743803448592,-500.0,0.00021363,2]
[357154693,1743803448602,-209.12505684,0.00021457,2]
[357154749,1743804632478,-170.955724,0.00013699,2]
[357154750,1743804632487,-313.692349,0.00019037,2]
[357154751,1743804632498,-419.12848707,0.00019701,2]
[357154752,1743804632508,-180.02423645,0.00019708,2]
[357154753,1743804632517,-160.0,0.00019713,2]
[357154754,1743804632527,-300.0,0.00019721,2]
[357154755,1743804632537,-2023.67520348,0.00019722,2]
[357154756,1743804632553,-10435.26299798,0.00019722,2]
[357154757,1743804632562,-500.0,0.00019812,2]
[357154758,1743804632571,-500.0,0.00019812,2]
[357154759,1743804632581,-500.0,0.00019812,2]
[357154760,1743804632591,-500.0,0.00019812,2]
[357154761,1743804632600,-500.0,0.00019812,2]
[357154762,1743804632609,-500.0,0.00019812,2]
[357154763,1743804632619,-500.0,0.00019812,2]
[357154764,1743804632629,-500.0,0.00019812,2]
[357154765,1743804632639,-500.0,0.00019812,2]
[357154766,1743804632649,-500.0,0.00019812,2]
[357154767,1743804632658,-500.0,0.00019813,2]
[357154768,1743804632667,-610.42,0.00019813,2]
[357154769,1743804632678,-500.0,0.00019813,2]
[357154770,1743804632687,-500.0,0.00019813,2]
[357154771,1743804632697,-500.0,0.00019813,2]
[357154772,1743804632707,-500.0,0.00020086,2]
[357154773,1743804632716,-500.0,0.00020086,2]
[357154774,1743804632725,-500.0,0.00020086,2]
[357154775,1743804632734,-500.0,0.00020086,2]
[357154776,1743804632744,-500.0,0.00020087,2]
[357154777,1743804632753,-1243.43322089,0.00020257,2]
[357154778,1743804632762,-166.6842139,0.000203,2]
[357154779,1743804632772,-200.0,0.00020346,2]
[357154780,1743804632782,-500.0,0.00020357,2]
[357154781,1743804632791,-500.0,0.00020357,2]
[357154782,1743804632801,-500.0,0.00020357,2]
[357154783,1743804632811,-500.0,0.00020357,2]
[357154784,1743804632821,-500.0,0.00020357,2]
[357154785,1743804632830,-214.34885126,0.00020357,2]
[357154786,1743804632840,-500.0,0.00020357,2]
[357154787,1743804632849,-500.0,0.00020357,2]
[357154788,1743804632858,-500.0,0.00020357,2]
[357154789,1743804632868,-161.11,0.00020357,2]
[357154790,1743804632878,-500.0,0.00020357,2]
[357154791,1743804632891,-500.0,0.00020358,2]
[357154792,1743804632904,-500.0,0.00020358,2]
[357154793,1743804632916,-500.0,0.00020358,2]
[357154794,1743804632928,-500.0,0.00020358,2]
[357154795,1743804632941,-500.0,0.00020358,2]
[357154796,1743804632953,-950.96066894,0.00020358,2]
[357154797,1743804632965,-500.0,0.00020358,2]
[357154798,1743804632975,-626.0155233,0.00020358,2]
[357154799,1743804632985,-500.0,0.00020358,2]
[357154800,1743804632997,-516.16634199,0.00020358,2]
[357154801,1743804633011,-386.41754121,0.00020358,2]
[357154802,1743804633022,-256.46288834,0.00020358,2]
[357154803,1743804633033,-500.0,0.00020358,2]
[357154804,1743804633045,-500.0,0.00020358,2]
[357154805,1743804633057,-500.0,0.00020358,2]
[357154806,1743804633070,-500.0,0.00020358,2]
[357154807,1743804633081,-298.29337725,0.00020358,2]
[357154808,1743804633093,-223.16623055,0.00020358,2]
[357154809,1743804633105,-500.0,0.00020358,2]
[357154810,1743804633116,-500.0,0.00020358,2]
[357154811,1743804633128,-200.06,0.00020358,2]
[357154812,1743804633140,-500.0,0.00020358,2]
[357154813,1743804633151,-500.0,0.00020358,2]
[357154814,1743804633164,-838.79,0.00020358,2]
[357154815,1743804633176,-354.81,0.00020358,2]
[357154816,1743804633189,-500.0,0.00020359,2]
[357154817,1743804633201,-63.90050714,0.0002036,2]
[357154831,1743804638191,-500.0,0.00019812,2]
[357154833,1743804638201,-500.0,0.00020086,2]
[357154836,1743804638212,-436.09949286,0.0002036,2]
[357154838,1743804638221,-151.0,0.0002036,2]
[357154840,1743804638230,-500.0,0.0002036,2]
[357154842,1743804638240,-151.0,0.0002036,2]
[357154844,1743804638249,-151.0,0.0002036,2]
[357154846,1743804638258,-151.0,0.0002036,2]
[357154848,1743804638267,-500.0,0.0002036,2]
[357154850,1743804638276,-500.0,0.0002036,2]
[357154852,1743804638286,-500.0,0.0002036,2]
[357154854,1743804638295,-500.0,0.00020361,2]
[357154856,1743804638306,-151.0,0.00020361,2]
[357154858,1743804638315,-191.496717,0.00020361,2]
[357154860,1743804638324,-418.155155,0.00020361,2]
[357154862,1743804638333,-418.155155,0.00020361,2]
[357154864,1743804638342,-166.96009006,0.000206,2]
[357154866,1743804638351,-151.0,0.00020631,2]
[357154868,1743804638360,-151.0,0.00020631,2]
[357154870,1743804638369,-500.0,0.00020631,2]
[357154872,1743804638378,-151.0,0.00020631,2]
[357154873,1743804638387,-151.0,0.00020631,2]
[357154875,1743804638396,-500.0,0.00020631,2]
[357154876,1743804638405,-152.642814,0.00020631,2]
[357154877,1743804638414,-151.0,0.00020631,2]
[357154878,1743804638423,-151.0,0.00020631,2]
[357154879,1743804638432,-500.0,0.00020631,2]
[357154880,1743804638441,-500.0,0.00020631,2]
[357154881,1743804638450,-500.0,0.00020632,2]
[357154882,1743804638460,-151.0,0.00020632,2]
[357154883,1743804638470,-151.0,0.00020632,2]
[357154884,1743804638480,-151.0,0.00020632,2]
[357154885,1743804638489,-151.0,0.00020632,2]
[357154886,1743804638498,-500.0,0.00020632,2]
[357154887,1743804638507,-282.38,0.00020632,2]
[357154888,1743804638517,-500.0,0.00020632,2]
[357154889,1743804638526,-527.04,0.00020632,2]
[357154890,1743804638536,-838.79,0.00020632,2]
[357154891,1743804638545,-500.0,0.00020634,2]
[357154892,1743804638555,-153.549782,0.00020634,2]
[357154893,1743804638565,-500.0,0.00020634,2]
[357154894,1743804638577,-151.0,0.00020634,2]
[357154895,1743804638587,-151.0,0.00020634,2]
[357154896,1743804638596,-151.0,0.00020634,2]
[357154897,1743804638605,-500.0,0.00020634,2]
[357154898,1743804638615,-587.25,0.00020634,2]
[357154899,1743804638623,-597.57156013,0.00020634,2]
[357154900,1743804638633,-500.0,0.00020635,2]
[357154901,1743804638642,-500.0,0.00020737,2]
[357154902,1743804638651,-500.0,0.00020771,2]
[357154903,1743804638661,-151.0,0.00020772,2]
[357154904,1743804638670,-151.0,0.00020772,2]
[357154905,1743804638679,-220.42493085,0.00020789,2]
[357154906,1743804638689,-500.0,0.00020789,2]
[357154907,1743804638698,-500.0,0.00020789,2]
[357154908,1743804638708,-500.0,0.00020789,2]
[357154909,1743804638717,-500.0,0.00020789,2]
[357154910,1743804638727,-146.93410345,0.00020789,2]
[357154911,1743804638740,-139.76867403,0.00020789,2]
[357154912,1743804638749,-500.0,0.00020789,2]
[357154913,1743804638759,-500.0,0.00020789,2]
[357154914,1743804638769,-500.0,0.00020789,2]
[357154915,1743804638779,-500.0,0.00020789,2]
[357154916,1743804638788,-500.0,0.00020789,2]
[357154917,1743804638798,-500.0,0.00020789,2]
[357154918,1743804638808,-500.0,0.00020789,2]
[357154919,1743804638818,-500.0,0.00020789,2]
[357154920,1743804638827,-500.0,0.00020789,2]
[357154921,1743804638837,-500.0,0.00020789,2]
[357154922,1743804638846,-500.0,0.00020789,2]
[357154923,1743804638856,-500.0,0.0002079,2]
[357154924,1743804638865,-500.0,0.0002079,2]
[357154925,1743804638875,-500.0,0.0002079,2]
[357154926,1743804638884,-500.0,0.0002079,2]
[357154927,1743804638894,-418.155155,0.000208,2]
[357154928,1743804638904,-418.155155,0.000208,2]
[357154929,1743804638913,-151.0,0.00020899,2]
[357154930,1743804638923,-213.661616,0.00020899,2]
[357154931,1743804638932,-151.0,0.00020899,2]
[357154932,1743804638942,-737.63666115,0.000209,3]
[357154933,1743804638952,-500.0,0.00020905,2]
[357154934,1743804638966,-418.155155,0.00020905,2]
[357154935,1743804638975,-418.155155,0.00020905,2]
[357154936,1743804638985,-500.0,0.00020905,2]
[357154937,1743804638995,-151.0,0.00020905,2]
[357154938,1743804639004,-151.0,0.00020905,2]
[357154939,1743804639013,-151.0,0.00020905,2]
[357154940,1743804639023,-177.39951,0.00020905,2]
[357154941,1743804639032,-500.0,0.00020905,2]
[357154942,1743804639044,-500.0,0.00020905,2]
[357154943,1743804639054,-500.0,0.00020906,2]
[357154944,1743804639064,-151.0,0.00020906,2]
[357154945,1743804639073,-153.438206,0.00020906,2]
[357154946,1743804639082,-151.0,0.00020906,2]
[357154947,1743804639091,-151.0,0.00020906,2]
[357154948,1743804639101,-151.0,0.00020906,2]
[357154949,1743804639110,-151.0,0.00020906,2]
[357154950,1743804639120,-151.0,0.00020906,2]
[357154951,1743804639130,-151.0,0.00020906,2]
[357154952,1743804639139,-151.0,0.00020906,2]
[357154953,1743804639149,-500.0,0.00020906,2]
[357154954,1743804639158,-151.0,0.00020906,2]
[357154955,1743804639167,-151.0,0.00020906,2]
[357154956,1743804639177,-151.0,0.00020906,2]
[357154957,1743804639186,-838.79,0.00020906,2]
[357154958,1743804639195,-500.0,0.00020908,2]
[357154959,1743804639204,-500.0,0.00020908,2]
[357154961,1743804639214,-500.0,0.00020909,2]
[357154962,1743804639223,-151.0,0.00020909,2]
[357154963,1743804639233,-151.0,0.00020909,2]
[357154965,1743804639243,-151.0,0.00020909,2]
[357154966,1743804639252,-500.0,0.00020919,2]
[357154967,1743804639261,-500.0,0.00020919,2]
[357154968,1743804639271,-379.90654268,0.00020919,2]
[357154969,1743804639280,-500.0,0.00020919,2]
[357154970,1743804639289,-500.0,0.00020919,2]
[357154971,1743804639299,-500.0,0.00020919,2]
[357154972,1743804639308,-500.0,0.00020919,2]
[357154973,1743804639317,-500.0,0.00020925,2]
[357154974,1743804639327,-500.0,0.00020925,2]
[357154975,1743804639336,-500.0,0.00021131,2]
[357154976,1743804639346,-532.79523768,0.00021131,2]
[357154977,1743804639355,-418.155155,0.00021131,2]
[357154978,1743804639365,-418.155155,0.00021131,2]
[357154979,1743804639374,-151.0,0.00021131,2]
[357154980,1743804639384,-500.0,0.00021179,2]
[357154981,1743804639394,-500.0,0.00021179,2]
[357154982,1743804639403,-500.0,0.00021179,2]
[357154983,1743804639413,-500.0,0.00021179,2]
[357154984,1743804639422,-151.0,0.0002118,2]
[357154985,1743804639432,-500.0,0.0002118,2]
[357154986,1743804639441,-151.0,0.0002118,2]
[357154987,1743804639451,-838.79,0.0002118,2]
[357154988,1743804639461,-500.0,0.00021182,2]
[357154989,1743804639470,-500.0,0.00021182,2]
[357154990,1743804639480,-500.0,0.00021183,2]
[357154991,1743804639490,-202.82,0.00021447,3]
[357154992,1743804639501,-500.0,0.00021453,2]
[357154993,1743804639510,-500.0,0.00021453,2]
[357154994,1743804639519,-500.0,0.00021453,2]
[357154995,1743804639529,-433.36,0.00021453,2]
[357154996,1743804639547,-600.48238736,0.00021454,2]
[357154997,1743804639561,-418.155155,0.00021454,2]
[357154998,1743804639570,-418.155155,0.00021454,2]
[357154999,1743804639580,-151.0,0.00021454,2]
[357155000,1743804639590,-152.920768,0.00021454,2]
[357155001,1743804639600,-151.0,0.00021454,2]
[357155002,1743804639610,-838.79,0.00021454,2]
[357155003,1743804639619,-500.0,0.00021456,2]
[357155004,1743804639629,-500.0,0.00021456,2]
[357155005,1743804639639,-500.0,0.00021457,2]
[357155006,1743804639648,-737.63666114,0.00021555,3]
[357155007,1743804639659,-207.4,0.00021715,2]
[357155008,1743804639670,-500.0,0.00021727,2]
[357155009,1743804639679,-500.0,0.00021727,2]
[357155010,1743804639689,-500.0,0.00021727,2]
[357155011,1743804639700,-838.79,0.00021728,2]
[357155012,1743804639710,-500.0,0.0002173,2]
[357155013,1743804639720,-396.16387724,0.0002173,2]
[357155014,1743804639730,-200.73924223,0.00021731,2]
[357155015,1743804639744,-299.26075777,0.00021731,2]
[357155016,1743804639754,-151.0,0.00021731,2]
[357155017,1743804639764,-299.534364,0.00021731,2]
[357155018,1743804639774,-151.0,0.00021731,2]
[357155019,1743804639784,-151.0,0.00021731,2]
[357155020,1743804639793,-347.52696543,0.00022,2]
[357155021,1743804639803,-163.79535546,0.00022,2]
[357155022,1743804639813,-151.0,0.00022,7]
[357155023,1743804639823,-500.0,0.00022001,2]
[357155024,1743804639833,-603.18241166,0.00022001,2]
[357155025,1743804639843,-500.0,0.00022001,2]
[357155026,1743804639852,-838.79,0.00022002,2]
[357155027,1743804639862,-164.08008566,0.00022004,2]
[357155028,1743804639872,-500.0,0.00022005,2]
[357155030,1743804639881,-151.0,0.00022005,7]
[357155031,1743804639891,-151.0,0.00022005,7]
[357155032,1743804639901,-151.0,0.00022005,7]
[357155033,1743804639911,-151.0,0.00022005,7]
[357155034,1743804639922,-418.155155,0.00022005,2]
[357155035,1743804639932,-418.155155,0.00022005,2]
[357155036,1743804639943,-151.0,0.00022005,7]
[357155037,1743804639953,-737.63666114,0.0002221,3]
[357155038,1743804639967,-500.0,0.00022275,2]
[357155039,1743804639978,-500.0,0.00022275,2]
[357155040,1743804639988,-838.79,0.00022276,2]
[357155041,1743804639998,-500.0,0.00022279,2]
[357155042,1743804640009,-151.0,0.00022459,7]
[357155043,1743804640019,-189.438821,0.00022459,7]
[357155044,1743804640029,-500.0,0.00022549,2]
[357155045,1743804640038,-500.0,0.00022549,2]
[357155046,1743804640050,-838.79,0.0002255,2]
[357155047,1743804640060,-286.807975,0.00022552,7]
[357155048,1743804640070,-151.0,0.00022552,7]
[357155049,1743804640079,-500.0,0.00022553,2]
[357155050,1743804640089,-271.95292595,0.00022823,2]
[357155051,1743804640099,-500.0,0.00022823,2]
[357155052,1743804640109,-838.79,0.00022824,2]
[357155053,1743804640118,-375.0,0.00022827,2]
[357155054,1743804640128,-151.0,0.00022865,7]
[357155055,1743804640138,-737.63666114,0.00022866,4]
[357155056,1743804640148,-428.53990089,0.000229,2]
[357155057,1743804640159,-419.12848707,0.00023,3]
[357155058,1743804640174,-151.0,0.00023,7]
[357155059,1743804640185,-1243.43322084,0.00023063,2]
[357155060,1743804640195,-151.0,0.00023064,7]
[357155061,1743804640206,-418.155155,0.00023064,2]
[357155062,1743804640216,-272.68292002,0.00023064,2]
[357155063,1743804640234,-145.47223498,0.00023064,2]
[357155064,1743804640244,-394.37398438,0.00023068,2]
[357155065,1743804640256,-71.60218947,0.00023068,2]
[357155066,1743804640265,-253.1791306,0.00023084,2]
[357155067,1743804640275,-500.0,0.00023097,2]
[357155068,1743804640285,-166.38335879,0.00023098,2]
[357155069,1743804640296,-672.40664121,0.00023098,2]
[357155070,1743804640306,-151.0,0.00023101,7]
[357155071,1743804640316,-7.58288336,0.0002311,2]
[357155072,1743804640328,-420.95701749,0.0002311,2]
[357155073,1743804640338,-228.2,0.00023297,7]
[357155074,1743804640348,-500.0,0.00023297,2]
[357155075,1743804640358,-382.17532052,0.00023297,2]
[357155076,1743804640369,-10191.42767817,0.00023298,2]
[357155077,1743804640381,-677.41019514,0.00023298,2]
[357155078,1743804640393,-777.84,0.00023298,2]
[357155081,1743804640472,-151.850274,0.0002036,2]
[357155083,1743804640483,-608.85170906,0.00023298,2]
[357155085,1743804640495,-423.16002039,0.00023298,2]
[357155087,1743804640507,-1573.8049801,0.00023298,2]
[357155089,1743804640517,-33.01405457,0.00023298,7]
[357155092,1743804640530,-117.98594543,0.00023298,7]
[357155094,1743804640540,-151.0,0.00023298,7]
[357155096,1743804640550,-418.155155,0.00023298,2]
[357155098,1743804640559,-418.155155,0.00023298,2]
[357155100,1743804640569,-151.0,0.00023298,7]
[357155102,1743804640579,-151.0,0.00023298,7]
[357155104,1743804640588,-65.38733688,0.0002332,2]
[357155107,1743804640600,-363.15256397,0.0002332,2]
[357155109,1743804640610,-428.17974133,0.00023371,2]
[357155111,1743804640622,-71.82025867,0.00023371,2]
[357155113,1743804640631,-410.20170054,0.00023372,2]
[357155115,1743804640643,-428.58829946,0.00023372,2]
[357155117,1743804640652,-737.63666114,0.00023521,4]
[357155119,1743804640661,-428.53990085,0.0002353,2]
[357155121,1743804640671,-500.0,0.00023645,2]
[357155123,1743804640680,-838.79,0.00023646,2]
[357155126,1743804640690,-428.53990085,0.0002374,2]
[357155128,1743804640700,-188.53220752,0.00023839,3]
[357155791,1743804646718,-5105.44439925,0.00023839,3]
[357155793,1743804646730,-11883.47844899,0.00023839,3]
[357155795,1743804646740,-292873.48362169,0.0002384,2]
[357156057,1743805700235,-238.30550784,0.000125,2]
[357156058,1743805708296,238.30550784,0.000145,3]
[357156096,1743805832536,-640.69661884,0.000125,2]
[357156097,1743805832546,-170.955724,0.00013699,2]
[357156098,1743805832557,-419.12848707,0.00019721,2]
[357156099,1743805832566,-300.0,0.00019976,2]
[357156100,1743805832575,-12752.80416923,0.00019977,2]
[357156101,1743805832584,-160.0,0.00020637,2]
[357156102,1743805832724,-736.01945717,0.000209,3]
[357156103,1743805832740,-736.01945694,0.00021555,3]
[357156104,1743805832751,-420.0,0.00021752,2]
[357156105,1743805832760,-200.0,0.00021787,2]
[357156106,1743805832772,-153.0,0.00021918,2]
[357156107,1743805832782,-153.0,0.00021918,2]
[357156108,1743805832792,-153.0,0.00021918,2]
[357156109,1743805832802,-153.0,0.00021918,2]
[357156110,1743805832811,-153.0,0.00021918,2]
[357156111,1743805832823,-163.73238051,0.00022,10]
[357156112,1743805832833,-736.01945694,0.0002221,3]
[357156113,1743805832841,-1347.35056226,0.00022266,2]
[357156114,1743805832851,-152.0,0.00022271,2]
[357156115,1743805832860,-794.96906513,0.00022336,2]
[357156116,1743805832869,-555.69,0.00022357,3]
[357156117,1743805832878,-500.0,0.00022365,2]
[357156118,1743805832888,-521.01534072,0.00022365,2]
[357156119,1743805832897,-500.0,0.00022365,2]
[357156120,1743805832906,-500.0,0.00022365,2]
[357156121,1743805832915,-471.57,0.00022365,2]
[357156122,1743805832925,-543.69,0.00022365,2]
[357156123,1743805832935,-431.47757021,0.00022365,2]
[357156124,1743805832944,-500.0,0.00022365,2]
[357156125,1743805832954,-583.2,0.00022365,2]
[357156126,1743805832963,-500.0,0.00022365,2]
[357156127,1743805832973,-500.0,0.00022365,2]
[357156128,1743805832982,-466.78,0.00022365,2]
[357156129,1743805832992,-500.0,0.00022365,2]
[357156130,1743805833002,-594.37032008,0.00022365,2]
[357156131,1743805833012,-617.52272437,0.00022366,2]
[357156132,1743805833021,-500.0,0.00022366,2]
[357156133,1743805833031,-500.0,0.00022366,2]
[357156134,1743805833041,-500.0,0.00022366,2]
[357156135,1743805833051,-330.46059013,0.00022366,2]
[357156136,1743805833060,-500.0,0.00022366,2]
[357156137,1743805833070,-164.97350521,0.00022366,2]
[357156138,1743805833079,-500.0,0.00022366,2]
[357156139,1743805833088,-500.0,0.00022366,2]
[357156140,1743805833097,-500.0,0.00022366,2]
[357156141,1743805833106,-500.0,0.00022366,2]
[357156142,1743805833116,-500.0,0.00022366,2]
[357156143,1743805833126,-500.0,0.00022366,2]
[357156144,1743805833135,-500.0,0.00022366,2]
[357156145,1743805833145,-500.0,0.00022366,2]
[357156146,1743805833154,-500.0,0.00022366,2]
[357156147,1743805833164,-500.0,0.00022366,2]
[357156148,1743805833174,-500.0,0.00022366,2]
[357156149,1743805833184,-500.0,0.00022366,2]
[357156150,1743805833193,-500.0,0.00022366,2]
[357156151,1743805833202,-264.03658987,0.00022366,2]
[357156152,1743805833212,-500.0,0.00022366,2]
[357156153,1743805833221,-500.0,0.00022366,2]
[357156154,1743805833231,-500.0,0.00022366,2]
[357156155,1743805833240,-500.0,0.00022366,2]
[357156156,1743805833250,-500.0,0.00022366,2]
[357156157,1743805833260,-500.0,0.00022366,2]
[357156158,1743805833270,-500.0,0.00022366,2]
[357156159,1743805833280,-500.0,0.00022366,2]
[357156160,1743805833290,-500.0,0.00022366,2]
[357156161,1743805833300,-500.0,0.00022366,2]
[357156162,1743805833314,-500.0,0.00022366,2]
[357156163,1743805833324,-500.0,0.00022366,2]
[357156164,1743805833333,-370000.0,0.00022367,2]
[357156165,1743805833343,-210.04787036,0.00022373,2]
[357156166,1743805833353,-500.0,0.00022373,2]
[357156167,1743805833363,-259.26991722,0.00022373,2]
[357156168,1743805833372,-500.0,0.00022373,2]
[357156169,1743805833381,-501.61828827,0.00022373,2]
[357156170,1743805833391,-472.93347089,0.00022373,2]
[357156171,1743805833401,-585.02123621,0.00022373,2]
[357156172,1743805833411,-500.0,0.00022373,2]
[357156173,1743805833421,-500.0,0.00022373,2]
[357156174,1743805833431,-500.4865879,0.00022373,2]
[357156175,1743805833441,-500.0,0.00022373,2]
[357156176,1743805833450,-513.81120663,0.00022373,2]
[357156177,1743805833460,-500.0,0.00022373,2]
[357156178,1743805833470,-500.0,0.00022373,2]
[357156179,1743805833479,-500.0,0.00022373,2]
[357156180,1743805833490,-500.0,0.00022373,2]
[357156181,1743805833500,-500.0,0.00022373,2]
[357156182,1743805833510,-500.0,0.00022373,2]
[357156183,1743805833520,-500.0,0.00022373,2]
[357156184,1743805833530,-500.0,0.00022373,2]
[357156185,1743805833540,-500.0,0.00022373,2]
[357156186,1743805833551,-500.0,0.00022373,2]
[357156187,1743805833560,-500.0,0.00022373,2]
[357156188,1743805833570,-500.0,0.00022373,2]
[357156189,1743805833579,-578.40564572,0.00022373,2]
[357156190,1743805833589,-500.0,0.00022373,2]
[357156191,1743805833599,-500.0,0.00022373,2]
[357156192,1743805833607,-12500.0,0.00022379,2]
[357156193,1743805833616,-12500.0,0.00022388,2]
[357156194,1743805833625,-2646.98830338,0.00022396,3]
[357156195,1743805833635,-5941.7392245,0.00022396,3]
[357156196,1743805833645,-12500.0,0.00022397,2]
[357156197,1743805833655,-151.0,0.00022405,7]
[357156198,1743805833665,-151.0,0.00022405,7]
[357156199,1743805833674,-304.090561,0.00022405,2]
[357156200,1743805833685,-304.090561,0.00022405,2]
[357156201,1743805833694,-151.0,0.00022405,7]
[357156202,1743805833704,-151.0,0.00022405,7]
[357156203,1743805833714,-12500.0,0.00022405,2]
[357156204,1743805833725,-12500.0,0.00022414,2]
[357156205,1743805833736,-12500.0,0.00022423,2]
[357156206,1743805833745,-12500.0,0.00022432,2]
[357156207,1743805833755,-151.0,0.00022432,7]
[357156208,1743805833766,-151.0,0.00022432,7]
[357156209,1743805833778,-304.090561,0.00022432,2]
[357156210,1743805833788,-304.090561,0.00022432,2]
[357156211,1743805833798,-151.0,0.00022432,7]
[357156212,1743805833808,-151.0,0.00022432,7]
[357156213,1743805833818,-12500.0,0.00022441,2]
[357156214,1743805833827,-500.0,0.00022449,2]
[357156215,1743805833837,-259.758,0.00022449,2]
[357156216,1743805833847,-514.35956208,0.00022449,2]
[357156217,1743805833857,-500.0,0.00022449,2]
[357156218,1743805833866,-500.0,0.00022449,2]
[357156219,1743805833876,-12500.0,0.00022449,2]
[357156220,1743805833887,-151.0,0.00022458,7]
[357156221,1743805833897,-304.090561,0.00022458,2]
[357156222,1743805833906,-304.090561,0.00022458,2]
[357156223,1743805833916,-151.0,0.00022458,7]
[357156224,1743805833926,-151.0,0.00022458,7]
[357156225,1743805833937,-12500.0,0.00022458,2]
[357156226,1743805833947,-12500.0,0.00022467,2]
[357156227,1743805833956,-500.0,0.00022473,2]
[357156228,1743805833967,-500.0,0.00022473,2]
[357156229,1743805833976,-500.0,0.00022473,2]
[357156230,1743805833986,-500.0,0.00022473,2]
[357156231,1743805833996,-500.0,0.00022473,2]
[357156232,1743805834005,-500.0,0.00022473,2]
[357156233,1743805834015,-500.0,0.00022473,2]
[357156234,1743805834027,-500.0,0.00022473,2]
[357156235,1743805834037,-500.0,0.00022473,2]
[357156236,1743805834047,-500.0,0.00022473,2]
[357156237,1743805834057,-500.0,0.00022473,2]
[357156238,1743805834067,-500.0,0.00022473,2]
[357156239,1743805834076,-510.02151464,0.00022473,2]
[357156240,1743805834086,-500.0,0.00022473,2]
[357156241,1743805834096,-500.0,0.00022639,2]
[357156242,1743805834106,-500.0,0.00022639,2]
[357156243,1743805834116,-500.0,0.00022639,2]
[357156244,1743805834125,-500.0,0.00022639,2]
[357156245,1743805834135,-500.0,0.00022639,2]
[357156246,1743805834144,-500.0,0.00022723,2]
[357156247,1743805834154,-500.0,0.00022723,2]
[357156248,1743805834164,-500.0,0.00022723,2]
[357156249,1743805834174,-736.01945694,0.00022866,4]
[357156250,1743805834184,-500.0,0.00022913,2]
[357156251,1743805834194,-500.0,0.00022913,2]
[357156252,1743805834203,-500.0,0.00022913,2]